fUST/lending_fUST_20250901
["ID","MTS","AMOUNT","RATE_DAILY","PERIOD"]
[382618251,1756679460724,-151.0,0.00017221,2]
[382618252,1756679460734,-151.0,0.00017221,2]
[382618253,1756679460745,-151.0,0.00017221,2]
[382618254,1756679460757,-480.0,0.00017221,2]
[382618255,1756679460767,-480.0,0.00017221,2]
[382618256,1756679460778,-480.0,0.00017221,2]
[382618257,1756679460788,-501.85,0.00017221,2]
[382618258,1756679460798,-480.0,0.00017221,2]
[382618259,1756679460808,-480.0,0.00017221,2]
[382618260,1756679460818,-801.5,0.00017221,2]
[382618261,1756679460828,-914.88,0.00017221,2]
[382618262,1756679460839,-929.01,0.00017221,2]
[382618263,1756679460849,-988.27,0.00017221,2]
[382618264,1756679460860,-480.0,0.00017221,2]
[382618265,1756679460871,-480.0,0.00017221,2]
[382618266,1756679460881,-1109.5,0.00017221,2]
[382618267,1756679460891,-926.74,0.00017221,2]
[382618268,1756679460901,-480.0,0.00017221,2]
[382618269,1756679460912,-480.0,0.00017221,2]
[382618270,1756679460923,-480.0,0.00017221,2]
[382618271,1756679460933,-480.0,0.00017221,2]
[382618272,1756679460943,-480.0,0.00017221,2]
[382618273,1756679460953,-480.0,0.00017221,2]
[382618274,1756679460963,-1718.87,0.00017221,2]
[382618275,1756679460974,-480.0,0.00017221,2]
[382618276,1756679460984,-480.0,0.00017221,2]
[382618277,1756679460994,-2683.81377009,0.00017221,2]
[382618278,1756679461004,-606.05,0.00017221,2]
[382618279,1756679461014,-480.0,0.00017221,2]
[382618280,1756679461025,-480.0,0.00017221,2]
[382618281,1756679461035,-1152.04,0.00017221,2]
[382618282,1756679461044,-480.0,0.00017221,2]
[382618283,1756679461055,-151.0,0.00017221,2]
[382618284,1756679461065,-151.0,0.00017221,2]
[382618285,1756679461075,-272.71618602,0.00017233,2]
[382618286,1756679461085,-151.0,0.000173,2]
[382618287,1756679461095,-1201.4,0.0001732,2]
[382618288,1756679461106,-500.0,0.00017321,2]
[382618289,1756679461116,-608.87160144,0.00017321,2]
[382618290,1756679461126,-1000.0,0.00017321,2]
[382618291,1756679461136,-1000.0,0.00017321,2]
[382618292,1756679461147,-1000.0,0.00017321,2]
[382618293,1756679461157,-1000.0,0.00017321,2]
[382618294,1756679461167,-1000.0,0.00017321,2]
[382618295,1756679461177,-1000.0,0.00017321,2]
[382618296,1756679461188,-389.23249397,0.00017321,2]
[382618297,1756679461198,-1000.0,0.00017321,2]
[382618298,1756679461209,-403.58140753,0.00017321,2]
[382618299,1756679461219,-1000.0,0.00017321,2]
[382618300,1756679461230,-1000.0,0.00017321,2]
[382618301,1756679461240,-1000.0,0.00017321,2]
[382618302,1756679461250,-1000.0,0.00017321,2]
[382618303,1756679461261,-1000.0,0.00017321,2]
[382618304,1756679461271,-1088.98315243,0.00017321,2]
[382618305,1756679461282,-524.36340573,0.00017321,2]
[382618306,1756679461292,-1000.0,0.00017321,2]
[382618307,1756679461302,-713.79428328,0.00017321,2]
[382618308,1756679461313,-1000.0,0.00017321,2]
[382618309,1756679461324,-752.29239426,0.00017321,2]
[382618310,1756679461334,-1000.0,0.00017321,2]
[382618311,1756679461345,-500.0,0.00017321,2]
[382618312,1756679461355,-751.57008637,0.00017321,2]
[382618313,1756679461518,-1000.0,0.00017321,2]
[382618314,1756679461528,-500.75883026,0.00017321,2]
[382618315,1756679461539,-1000.0,0.00017321,2]
[382618316,1756679461549,-1000.0,0.00017321,2]
[382618317,1756679461561,-1000.0,0.00017321,2]
[382618318,1756679461571,-1000.0,0.00017321,2]
[382618319,1756679461581,-1000.0,0.00017321,2]
[382618320,1756679461591,-500.0,0.00017321,2]
[382618321,1756679461601,-1201.4,0.00017321,2]
[382618322,1756679461611,-151.0,0.00017321,2]
[382618323,1756679461621,-151.0,0.00017321,2]
[382618324,1756679461632,-1873.42,0.00017321,2]
[382618325,1756679461643,-480.0,0.00017321,2]
[382618326,1756679461654,-1038.32,0.00017321,2]
[382618327,1756679461665,-660.29,0.00017321,2]
[382618328,1756679461676,-1302.48,0.00017321,2]
[382618329,1756679461685,-480.0,0.00017321,2]
[382618330,1756679461695,-1019.61,0.00017321,2]
[382618331,1756679461706,-1019.61,0.00017321,2]
[382618332,1756679461716,-1019.61,0.00017321,2]
[382618333,1756679461726,-1019.61,0.00017321,2]
[382618334,1756679461737,-1019.61,0.00017321,2]
[382618335,1756679461748,-1019.65046566,0.00017321,2]
[382618336,1756679461758,-151.0,0.00017321,2]
[382618337,1756679461768,-151.0,0.00017321,2]
[382618338,1756679461778,-172.580756,0.00017321,2]
[382618339,1756679461788,-172.580756,0.00017321,2]
[382618340,1756679461798,-172.580756,0.00017321,2]
[382618341,1756679461808,-480.0,0.00017321,2]
[382618342,1756679461818,-172.580756,0.00017321,2]
[382618343,1756679461828,-480.0,0.00017321,2]
[382618344,1756679461837,-151.0,0.00017321,2]
[382618345,1756679461847,-1000.0,0.00017321,2]
[382618346,1756679461857,-1000.0,0.00017321,2]
[382618347,1756679461868,-1000.0,0.00017321,2]
[382618348,1756679461878,-1000.0,0.00017321,2]
[382618349,1756679461888,-1000.0,0.00017321,2]
[382618350,1756679461898,-151.0,0.00017321,2]
[382618351,1756679461908,-1000.0,0.00017321,2]
[382618352,1756679461919,-1000.0,0.00017321,2]
[382618353,1756679461929,-1000.0,0.00017321,2]
[382618354,1756679461940,-1000.0,0.00017321,2]
[382618355,1756679461951,-1000.0,0.00017321,2]
[382618356,1756679461961,-1000.0,0.00017321,2]
[382618357,1756679461970,-1000.0,0.00017321,2]
[382618358,1756679461980,-1000.0,0.00017321,2]
[382618359,1756679461990,-1000.0,0.00017321,2]
[382618360,1756679462001,-1000.0,0.00017321,2]
[382618361,1756679462011,-1000.0,0.00017321,2]
[382618362,1756679462022,-1000.0,0.00017321,2]
[382618363,1756679462032,-1000.0,0.00017321,2]
[382618364,1756679462042,-1000.0,0.00017321,2]
[382618365,1756679462052,-274.933796,0.00017321,2]
[382618366,1756679462063,-1000.0,0.00017321,2]
[382618367,1756679462072,-151.0,0.00017321,2]
[382618368,1756679462083,-1000.0,0.00017321,2]
[382618369,1756679462094,-1000.0,0.00017321,2]
[382618370,1756679462109,-1000.0,0.00017321,2]
[382618371,1756679462118,-1000.0,0.00017321,2]
[382618372,1756679462128,-274.933796,0.00017321,2]
[382618373,1756679462138,-151.123548,0.00017321,2]
[382618374,1756679462147,-1000.0,0.00017321,2]
[382618375,1756679462157,-1000.0,0.00017321,2]
[382618376,1756679462167,-1000.0,0.00017321,2]
[382618377,1756679462176,-604.96,0.00017321,2]
[382618378,1756679462187,-274.933796,0.00017321,2]
[382618379,1756679462198,-868.837679,0.00017321,2]
[382618380,1756679462208,-274.933796,0.00017321,2]
[382618381,1756679462218,-623.86,0.00017322,2]
[382618382,1756679462228,-788.33,0.00017322,2]
[382618383,1756679462238,-480.0,0.00017322,2]
[382618384,1756679462248,-480.0,0.00017322,2]
[382618385,1756679462263,-169.68656562,0.00017322,2]
[382618386,1756679462274,-480.0,0.00017322,2]
[382618387,1756679462284,-523.58,0.00017322,2]
[382618388,1756679462294,-480.0,0.00017322,2]
[382618389,1756679462305,-480.0,0.00017322,2]
[382618390,1756679462316,-480.0,0.00017322,2]
[382618391,1756679462326,-480.0,0.00017322,2]
[382618392,1756679462337,-480.0,0.00017322,2]
[382618393,1756679462348,-480.0,0.00017322,2]
[382618394,1756679462358,-480.0,0.00017322,2]
[382618395,1756679462367,-480.0,0.00017322,2]
[382618396,1756679462377,-480.0,0.00017322,2]
[382618397,1756679462386,-480.0,0.00017322,2]
[382618398,1756679462396,-480.0,0.00017322,2]
[382618399,1756679462405,-480.0,0.00017322,2]
[382618400,1756679462415,-480.0,0.00017322,2]
[382618401,1756679462424,-913.17,0.00017322,2]
[382618402,1756679462434,-480.0,0.00017322,2]
[382618403,1756679462443,-480.0,0.00017322,2]
[382618404,1756679462453,-985.71,0.00017322,2]
[382618405,1756679462462,-480.0,0.00017322,2]
[382618406,1756679462471,-480.0,0.00017322,2]
[382618407,1756679462481,-1008.43,0.00017322,2]
[382618408,1756679462490,-480.0,0.00017322,2]
[382618409,1756679462500,-151.0,0.00017322,2]
[382618410,1756679462510,-188.33928,0.00017322,2]
[382618411,1756679462521,-480.0,0.00017322,2]
[382618412,1756679462531,-480.0,0.00017322,2]
[382618413,1756679462540,-1229.74,0.00017322,2]
[382618414,1756679462550,-151.0,0.00017322,2]
[382618415,1756679462560,-159.342596,0.00017322,2]
[382618416,1756679462570,-159.342596,0.00017322,2]
[382618417,1756679462580,-159.342596,0.00017322,2]
[382618418,1756679462590,-480.0,0.00017322,2]
[382618419,1756679462602,-159.342596,0.00017322,2]
[382618420,1756679462612,-480.0,0.00017322,2]
[382618421,1756679462623,-563.89,0.00017322,2]
[382618422,1756679462634,-959.0,0.00017322,2]
[382618423,1756679462645,-599.96,0.00017322,2]
[382618424,1756679462654,-1001.25,0.00017322,2]
[382618425,1756679462665,-480.0,0.00017322,2]
[382618426,1756679462675,-790.77,0.00017322,2]
[382618427,1756679462685,-480.0,0.00017322,2]
[382618428,1756679462695,-480.0,0.00017322,2]
[382618429,1756679462707,-480.0,0.00017322,2]
[382618430,1756679462717,-480.0,0.00017322,2]
[382618431,1756679462727,-480.0,0.00017322,2]
[382618432,1756679462736,-494.82,0.00017322,2]
[382618433,1756679462746,-530.59989711,0.00017322,2]
[382618434,1756679462755,-480.0,0.00017322,2]
[382618435,1756679462764,-480.0,0.00017322,2]
[382618436,1756679462775,-480.0,0.00017322,2]
[382618437,1756679462785,-480.0,0.00017322,2]
[382618438,1756679462795,-480.0,0.00017322,2]
[382618439,1756679462804,-480.0,0.00017322,2]
[382618440,1756679462814,-480.0,0.00017322,2]
[382618441,1756679462823,-480.0,0.00017322,2]
[382618442,1756679462833,-480.0,0.00017322,2]
[382618443,1756679462843,-480.0,0.00017322,2]
[382618444,1756679462852,-480.0,0.00017322,2]
[382618445,1756679462862,-480.0,0.00017322,2]
[382618446,1756679462871,-480.0,0.00017322,2]
[382618447,1756679462881,-480.0,0.00017322,2]
[382618448,1756679462891,-247.72,0.00017322,2]
[382618449,1756679462902,-480.0,0.00017322,2]
[382618450,1756679462913,-480.0,0.00017322,2]
[382618451,1756679462922,-480.0,0.00017322,2]
[382618452,1756679462931,-480.0,0.00017322,2]
[382618453,1756679462941,-480.0,0.00017322,2]
[382618454,1756679462950,-480.0,0.00017322,2]
[382618455,1756679462959,-480.0,0.00017322,2]
[382618456,1756679462969,-480.0,0.00017322,2]
[382618457,1756679462978,-480.0,0.00017322,2]
[382618458,1756679462988,-480.0,0.00017322,2]
[382618459,1756679462997,-480.0,0.00017322,2]
[382618460,1756679463006,-345.358856,0.00017322,2]
[382618461,1756679463016,-480.0,0.00017322,2]
[382618462,1756679463026,-345.358856,0.00017322,2]
[382618463,1756679463035,-345.358856,0.00017322,2]
[382618464,1756679463045,-345.358856,0.00017322,2]
[382618465,1756679463054,-480.0,0.00017322,2]
[382618466,1756679463064,-935.27,0.00017322,2]
[382618467,1756679463074,-480.0,0.00017322,2]
[382618468,1756679463085,-151.0,0.00017322,2]
[382618469,1756679463095,-988.75,0.00017322,2]
[382618470,1756679463105,-295.25533,0.00017322,2]
[382618471,1756679463114,-480.0,0.00017322,2]
[382618472,1756679463124,-151.0,0.00017322,2]
[382618473,1756679463134,-480.0,0.00017322,2]
[382618474,1756679463144,-803.92,0.00017322,2]
[382618475,1756679463154,-151.0,0.00017322,2]
[382618476,1756679463164,-151.0,0.00017322,2]
[382618477,1756679463173,-624.1,0.00017322,2]
[382618478,1756679463183,-513.55,0.00017322,2]
[382618479,1756679463194,-892.63,0.00017322,2]
[382618480,1756679463204,-480.0,0.00017322,2]
[382618481,1756679463214,-813.46,0.00017322,2]
[382618482,1756679463224,-755.62,0.00017322,2]
[382618483,1756679463234,-480.0,0.00017322,2]
[382618484,1756679463245,-480.0,0.00017322,2]
[382618485,1756679463255,-812.44,0.00017322,2]
[382618486,1756679463265,-1969.67,0.00017322,2]
[382618487,1756679463276,-480.0,0.00017322,2]
[382618488,1756679463285,-500.0,0.00017322,2]
[382618489,1756679463295,-480.0,0.00017322,2]
[382618490,1756679463304,-606.37,0.00017322,2]
[382618491,1756679463314,-480.0,0.00017322,2]
[382618492,1756679463324,-480.0,0.00017322,2]
[382618493,1756679463334,-915.34,0.00017322,2]
[382618494,1756679463343,-196.009368,0.00017322,2]
[382618495,1756679463353,-196.009368,0.00017322,2]
[382618496,1756679463363,-196.009368,0.00017322,2]
[382618497,1756679463373,-196.009368,0.00017322,2]
[382618498,1756679463382,-480.0,0.00017322,2]
[382618499,1756679463392,-480.0,0.00017322,2]
[382618500,1756679463402,-622.73,0.00017322,2]
[382618501,1756679463412,-480.0,0.00017322,2]
[382618502,1756679463422,-480.0,0.00017322,2]
[382618503,1756679463432,-151.0,0.00017322,2]
[382618504,1756679463442,-951.37,0.00017322,2]
[382618505,1756679463453,-151.0,0.00017322,2]
[382618506,1756679463463,-833.72,0.00017322,2]
[382618507,1756679463474,-480.0,0.00017322,2]
[382618508,1756679463483,-480.0,0.00017322,2]
[382618509,1756679463493,-480.0,0.00017322,2]
[382618510,1756679463502,-480.0,0.00017322,2]
[382618511,1756679463512,-480.0,0.00017322,2]
[382618512,1756679463521,-151.0,0.00017322,2]
[382618513,1756679463531,-480.0,0.00017322,2]
[382618514,1756679463541,-526.5,0.00017322,2]
[382618515,1756679463552,-732.56,0.00017322,2]
[382618516,1756679463561,-481.45,0.00017322,2]
[382618517,1756679463571,-151.0,0.00017322,2]
[382618518,1756679463581,-480.0,0.00017322,2]
[382618519,1756679463591,-151.0,0.00017322,2]
[382618520,1756679463600,-4272.48,0.00017322,2]
[382618521,1756679463610,-1977.22,0.00017322,2]
[382618522,1756679463620,-480.0,0.00017322,2]
[382618523,1756679463630,-480.0,0.00017322,2]
[382618524,1756679463639,-480.0,0.00017322,2]
[382618525,1756679463649,-480.0,0.00017322,2]
[382618526,1756679463659,-1190.84,0.00017322,2]
[382618527,1756679463669,-480.0,0.00017322,2]
[382618528,1756679463680,-480.0,0.00017322,2]
[382618529,1756679463689,-690.47,0.00017322,2]
[382618530,1756679463699,-1575.69,0.00017322,2]
[382618531,1756679463709,-1980.13,0.00017322,2]
[382618532,1756679463718,-480.0,0.00017322,2]
[382618533,1756679463728,-480.0,0.00017322,2]
[382618534,1756679463737,-500.78,0.00017322,2]
[382618535,1756679463747,-792.5,0.00017322,2]
[382618536,1756679463757,-480.0,0.00017322,2]
[382618537,1756679463766,-480.0,0.00017322,2]
[382618538,1756679463776,-777.66,0.00017322,2]
[382618539,1756679463786,-480.0,0.00017322,2]
[382618540,1756679463796,-480.0,0.00017322,2]
[382618541,1756679463805,-538.27,0.00017322,2]
[382618542,1756679463815,-481.7,0.00017322,2]
[382618543,1756679463825,-940.63,0.00017322,2]
[382618544,1756679463834,-480.0,0.00017322,2]
[382618545,1756679463844,-480.0,0.00017322,2]
[382618546,1756679463854,-747.13,0.00017322,2]
[382618547,1756679463863,-795.55,0.00017322,2]
[382618548,1756679463873,-480.0,0.00017322,2]
[382618549,1756679463883,-606.07,0.00017322,2]
[382618550,1756679463941,-480.0,0.00017322,2]
[382618551,1756679463951,-491.28981726,0.00017323,2]
[382618552,1756679463960,-166.28300412,0.00017323,2]
[382618553,1756679463970,-151.0,0.00017323,2]
[382618554,1756679463980,-500.0,0.00017323,2]
[382618555,1756679463990,-282.26544843,0.00017323,2]
[382618556,1756679464000,-500.0,0.00017323,2]
[382618557,1756679464009,-480.0,0.00017323,2]
[382618558,1756679464020,-480.0,0.00017323,2]
[382618559,1756679464030,-884.24,0.00017323,2]
[382618560,1756679464040,-519.61,0.00017323,2]
[382618561,1756679464050,-435.44634238,0.00017323,2]
[382618562,1756679464060,-480.0,0.00017323,2]
[382618563,1756679464070,-480.0,0.00017323,2]
[382618564,1756679464080,-480.0,0.00017323,2]
[382618565,1756679464090,-480.0,0.00017323,2]
[382618566,1756679464112,-480.0,0.00017323,2]
[382618567,1756679464122,-480.0,0.00017323,2]
[382618568,1756679464131,-480.0,0.00017323,2]
[382618569,1756679464141,-1201.4,0.00017323,2]
[382618570,1756679464151,-567.08652312,0.00017323,2]
[382618571,1756679464161,-505.05,0.00017323,2]
[382618572,1756679464170,-480.0,0.00017323,2]
[382618573,1756679464180,-480.0,0.00017323,2]
[382618574,1756679464190,-480.0,0.00017323,2]
[382618575,1756679464200,-494.44,0.00017323,2]
[382618576,1756679464211,-480.0,0.00017323,2]
[382618577,1756679464220,-480.0,0.00017323,2]
[382618578,1756679464230,-480.0,0.00017323,2]
[382618579,1756679464240,-584.67169518,0.00017323,2]
[382618580,1756679464250,-151.0,0.00017323,2]
[382618581,1756679464263,-151.0,0.00017323,2]
[382618582,1756679464274,-225.188496,0.00017323,2]
[382618583,1756679464284,-151.0,0.00017323,2]
[382618584,1756679464295,-151.0,0.00017323,2]
[382618585,1756679464305,-151.0,0.00017323,2]
[382618586,1756679464316,-151.0,0.00017323,2]
[382618587,1756679464326,-151.0,0.00017323,2]
[382618588,1756679464336,-480.0,0.00017323,2]
[382618589,1756679464346,-676.04,0.00017323,2]
[382618590,1756679464356,-559.84,0.00017323,2]
[382618591,1756679464365,-480.0,0.00017323,2]
[382618592,1756679464375,-151.0,0.00017323,2]
[382618593,1756679464384,-480.0,0.00017323,2]
[382618594,1756679464393,-480.0,0.00017323,2]
[382618595,1756679464403,-151.0,0.00017323,2]
[382618596,1756679464414,-480.0,0.00017323,2]
[382618597,1756679464423,-480.0,0.00017323,2]
[382618598,1756679464433,-480.0,0.00017323,2]
[382618599,1756679464443,-480.0,0.00017323,2]
[382618600,1756679464454,-480.0,0.00017323,2]
[382618601,1756679464464,-480.0,0.00017323,2]
[382618602,1756679464474,-480.0,0.00017323,2]
[382618603,1756679464484,-1040.07,0.00017323,2]
[382618604,1756679464494,-434.29,0.00017323,2]
[382618605,1756679464504,-480.0,0.00017323,2]
[382618606,1756679464514,-480.0,0.00017323,2]
[382618607,1756679464525,-480.0,0.00017323,2]
[382618608,1756679464534,-480.0,0.00017323,2]
[382618609,1756679464544,-480.0,0.00017323,2]
[382618610,1756679464554,-866.45,0.00017323,2]
[382618611,1756679464564,-480.0,0.00017323,2]
[382618612,1756679464574,-6102.28,0.00017323,2]
[382618613,1756679464583,-488.33,0.00017323,2]
[382618614,1756679464593,-480.0,0.00017323,2]
[382618615,1756679464603,-480.0,0.00017323,2]
[382618616,1756679464612,-1340.55,0.00017323,2]
[382618617,1756679464622,-480.0,0.00017323,2]
[382618618,1756679464632,-1237.62,0.00017323,2]
[382618619,1756679464642,-480.0,0.00017323,2]
[382618620,1756679464652,-480.0,0.00017323,2]
[382618621,1756679464662,-4649.07,0.00017323,2]
[382618622,1756679464672,-583.5,0.00017323,2]
[382618623,1756679464682,-480.0,0.00017323,2]
[382618624,1756679464693,-5403.0,0.00017323,2]
[382618625,1756679464703,-480.0,0.00017323,2]
[382618626,1756679464713,-480.0,0.00017323,2]
[382618627,1756679464724,-480.0,0.00017323,2]
[382618628,1756679464734,-480.0,0.00017323,2]
[382618629,1756679464744,-480.0,0.00017323,2]
[382618630,1756679464755,-1152.65,0.00017323,2]
[382618631,1756679464766,-480.0,0.00017323,2]
[382618632,1756679464776,-480.0,0.00017323,2]
[382618633,1756679464786,-151.0,0.00017323,2]
[382618634,1756679464796,-279.423575,0.00017323,2]
[382618635,1756679464808,-480.0,0.00017323,2]
[382618636,1756679464818,-480.0,0.00017323,2]
[382618637,1756679464828,-480.0,0.00017323,2]
[382618638,1756679464839,-480.0,0.00017323,2]
[382618639,1756679464848,-480.0,0.00017323,2]
[382618640,1756679464859,-172.580756,0.00017323,2]
[382618641,1756679464869,-172.580756,0.00017323,2]
[382618642,1756679464879,-172.580756,0.00017323,2]
[382618643,1756679464889,-1077.58,0.00017323,2]
[382618644,1756679464899,-172.580756,0.00017323,2]
[382618645,1756679464910,-240.98376815,0.00017323,2]
[382618646,1756679464919,-480.0,0.00017323,2]
[382618647,1756679464930,-2435.07,0.00017323,2]
[382618648,1756679464940,-151.0,0.00017323,2]
[382618649,1756679464950,-151.0,0.00017323,2]
[382618650,1756679464963,-480.0,0.00017323,2]
[382618651,1756679464973,-274.933796,0.00017323,2]
[382618652,1756679464984,-1113.46,0.00017323,2]
[382618653,1756679464994,-151.0,0.00017323,2]
[382618654,1756679465006,-151.0,0.00017323,2]
[382618655,1756679465016,-274.933796,0.00017323,2]
[382618656,1756679465027,-182.570074,0.00017323,2]
[382618657,1756679465038,-274.933796,0.00017323,2]
[382618658,1756679465048,-274.933796,0.00017323,2]
[382618659,1756679465059,-500.0,0.00017323,2]
[382618660,1756679465069,-480.0,0.00017324,2]
[382618661,1756679465080,-480.0,0.00017324,2]
[382618662,1756679465090,-574.56,0.00017324,2]
[382618663,1756679465101,-480.0,0.00017324,2]
[382618664,1756679465119,-151.0,0.00017324,2]
[382618665,1756679465129,-480.0,0.00017324,2]
[382618666,1756679465140,-480.0,0.00017324,2]
[382618667,1756679465153,-480.0,0.00017324,2]
[382618668,1756679465163,-480.0,0.00017324,2]
[382618669,1756679465174,-480.0,0.00017324,2]
[382618670,1756679465187,-480.0,0.00017324,2]
[382618671,1756679465198,-581.54088737,0.00017324,2]
[382618672,1756679465209,-480.0,0.00017324,2]
[382618673,1756679465219,-949.34,0.00017324,2]
[382618674,1756679465230,-480.0,0.00017324,2]
[382618675,1756679465241,-625.59969605,0.00017324,2]
[382618676,1756679465252,-480.0,0.00017324,2]
[382618677,1756679465263,-487.45,0.00017324,2]
[382618678,1756679465274,-480.0,0.00017324,2]
[382618679,1756679465284,-734.1,0.00017324,2]
[382618680,1756679465295,-480.0,0.00017324,2]
[382618681,1756679465305,-480.0,0.00017324,2]
[382618682,1756679465315,-480.0,0.00017324,2]
[382618683,1756679465325,-480.0,0.00017324,2]
[382618684,1756679465336,-1123.32,0.00017324,2]
[382618685,1756679465347,-540.81,0.00017324,2]
[382618686,1756679465357,-480.0,0.00017324,2]
[382618687,1756679465368,-480.0,0.00017324,2]
[382618688,1756679465378,-547.13,0.00017324,2]
[382618689,1756679465388,-480.0,0.00017324,2]
[382618690,1756679465399,-480.0,0.00017324,2]
[382618691,1756679465409,-483.62,0.00017324,2]
[382618692,1756679465419,-480.0,0.00017324,2]
[382618693,1756679465430,-480.0,0.00017324,2]
[382618694,1756679465440,-735.23,0.00017324,2]
[382618695,1756679465451,-845.48,0.00017324,2]
[382618696,1756679465464,-678.42,0.00017324,2]
[382618697,1756679465476,-480.0,0.00017324,2]
[382618698,1756679465487,-480.0,0.00017324,2]
[382618699,1756679465498,-480.0,0.00017324,2]
[382618700,1756679465509,-480.0,0.00017324,2]
[382618701,1756679465520,-480.0,0.00017324,2]
[382618702,1756679465530,-546.32,0.00017324,2]
[382618703,1756679465540,-480.0,0.00017324,2]
[382618704,1756679465551,-703.43,0.00017324,2]
[382618705,1756679465562,-480.0,0.00017324,2]
[382618706,1756679465573,-895.19,0.00017324,2]
[382618707,1756679465583,-1584.81,0.00017324,2]
[382618708,1756679465594,-480.0,0.00017324,2]
[382618709,1756679465605,-620.96,0.00017324,2]
[382618710,1756679465615,-480.0,0.00017324,2]
[382618711,1756679465626,-412.376,0.00017326,2]
[382618712,1756679465636,-501.40685948,0.0001734,2]
[382618713,1756679465646,-500.0,0.0001734,2]
[382618714,1756679465656,-500.0,0.0001734,2]
[382618715,1756679465667,-500.0,0.0001734,2]
[382618716,1756679465678,-500.0,0.0001734,2]
[382618717,1756679465688,-4572.49199471,0.00017357,2]
[382618718,1756679465700,-425.0,0.0001737,2]
[382618719,1756679465712,-174.4167197,0.00017395,2]
[382618720,1756679465722,-151.0,0.000174,2]
[382618721,1756679465734,-330.27086826,0.00017426,2]
[382618722,1756679465745,-1201.4,0.00017494,2]
[382618723,1756679465757,-480.0,0.00017495,2]
[382618724,1756679465769,-742.71,0.00017495,2]
[382618725,1756679465780,-480.0,0.00017495,2]
[382618726,1756679465791,-480.0,0.00017495,2]
[382618727,1756679465803,-480.0,0.00017495,2]
[382618728,1756679465818,-480.0,0.00017495,2]
[382618729,1756679465831,-998.97,0.00017495,2]
[382618730,1756679465844,-480.0,0.00017495,2]
[382618731,1756679465857,-480.0,0.00017495,2]
[382618732,1756679465868,-480.0,0.00017495,2]
[382618733,1756679465879,-480.0,0.00017495,2]
[382618734,1756679465892,-758.3,0.00017495,2]
[382618735,1756679465906,-727.58,0.00017495,2]
[382618736,1756679465920,-610.94,0.00017495,2]
[382618737,1756679465933,-480.0,0.00017495,2]
[382618738,1756679465946,-254.43567061,0.00017495,2]
[382618739,1756679465959,-789.86,0.00017495,2]
[382618740,1756679465971,-480.0,0.00017495,2]
[382618741,1756679465985,-151.0,0.00017495,2]
[382618742,1756679465996,-151.0,0.00017495,2]
[382618743,1756679466009,-184.400329,0.00017495,2]
[382618744,1756679466021,-943.21,0.00017495,2]
[382618745,1756679466033,-480.0,0.00017495,2]
[382618746,1756679466046,-912.78,0.00017495,2]
[382618747,1756679466059,-151.0,0.00017495,2]
[382618748,1756679466071,-222.837283,0.00017495,2]
[382618749,1756679466083,-480.0,0.00017495,2]
[382618750,1756679466094,-480.0,0.00017495,2]